[Event "POL-chT 2nd League Juniors 2020"]
[Site "Sypniewo"]
[Date "2020.10.23"]
[Round "1.19"]
[White "Chaczynski, Kamil"]
[Black "Krawczyk, Wojciech"]
[Result "1-0"]
[ECO "B18"]
[WhiteElo "1929"]
[BlackElo "2036"]
[Annotator "ChessBase"]
[PlyCount "65"]
[EventDate "2020.10.23"]
[EventType "team-tourn"]
[EventCountry "POL"]
[SourceTitle "playchess.com"]
[Source "ChessBase"]
[SourceQuality "1"]
[TimeControl "5400+30"]

1. e4 {[%emt 0:00:00]} c6 {[%emt 0:00:00]} 2. d4 {[%emt 0:00:00]} d5 {[%emt 0:00:00]} 3. Nc3 {[%emt 0:00:00]} dxe4 {[%emt 0:00:00]} 4. Nxe4 {[%emt 0:00:00]} Bf5 {[%emt 0:00:00]} 5. Ng3 {[%emt 0:00:07]} Bg6 {[%emt 0:00:04]} 6. Nh3 {[%emt 0:00:05]} e6 {[%emt 0:00:22]} 7. Nf4 {[%emt 0:00:04]} Bd6 {[%emt 0:00:18]} 8. c3 {[%emt 0:00:30]} Nf6 {[%emt 0:00:10]} 9. Bc4 {[%emt 0:00:17]} Qc7 {[%emt 0:00:46]} 10. Qf3 {[%emt 0:00:03]} Nd5 {[%emt 0:01:05]} 11. Nxg6 {[%emt 0:02:06]} hxg6 {[%emt 0:00:08]} 12. Bg5 {[%emt 0:01:42]} Nd7 {[%emt 0:01:52]} 13. Ne4 {[%emt 0:06:07]} Be7 {[%emt 0:14:49]} 14. Bxe7 {[%emt 0:01:52]} Nxe7 {[%emt 0:00:04]} 15. O-O-O {[%emt 0:00:52]} Nd5 {[%emt 0:00:20]} 16. Kb1 {[%emt 0:07:55]} N7f6 {[%emt 0:02:37]} 17. Bxd5 {[%emt 0:04:52]} Nxd5 {[%emt 0:00:08]} 18. c4 {[%emt 0:01:56]} Nb6 {[%emt 0:01:28]} 19. c5 {[%emt 0:08:47]} Nc8 {[%emt 0:00:19]} 20. h4 {[%emt 0:02:15]} Rh5 {[%emt 0:05:10]} 21. g4 {[%emt 0:03:58]} Rh6 {[%emt 0:08:05]} 22. h5 {[%emt 0:04:30]} Ke7 {[%emt 0:08:36]} 23. g5 {[%emt 0:20:46]} Rxh5 {[%emt 0:00:58]} 24. Rxh5 {[%emt 0:00:37]} gxh5 {[%emt 0:00:06]} 25. g6 {[%emt 0:01:09]} f5 {[%emt 0:03:58]} 26. Ng5 {[%emt 0:05:02]} Kf6 {[%emt 0:03:12]} 27. Nh7+ {[%emt 0:02:42]} Ke7 {[%emt 0:03:42]} 28. Re1 {[%emt 0:00:20]} Qd7 {[%emt 0:11:34]} 29. Ng5 {[%emt 0:05:09]} Kf6 {[%emt 0:06:18]} 30. Qf4 {[%emt 0:01:31]} Qd5 {[%emt 0:13:27]} 31. Nxe6 {[%emt 0:00:23]} Kxg6 {[%emt 0:04:12]} 32. Qg5+ {[%emt 0:00:10]} Kf7 {[%emt 0:00:11]} 33. Qxg7+ {[%emt 0:00:09]} 1-0

[Event "POL-chT 2nd League Juniors 2020"]
[Site "Sypniewo"]
[Date "2020.10.23"]
[Round "1.20"]
[White "Wrona, Florian"]
[Black "Niemier, Hubert"]
[Result "0-1"]
[ECO "B15"]
[WhiteElo "1463"]
[BlackElo "1771"]
[Annotator "NA"]
[PlyCount "64"]
[EventDate "2020.10.23"]
[EventType "team-tourn"]
[EventCountry "POL"]
[SourceTitle "playchess.com"]
[Source "ChessBase"]
[SourceQuality "1"]
[TimeControl "5400+30"]

1. e4 c6 {[%emt 0:00:00]} 2. d4 {[%emt 0:00:00]} d5 {[%emt 0:00:00]} 3. Nc3 dxe4 {[%emt 0:00:00]} 4. Nxe4 {[%emt 0:00:00]} Nf6 {[%emt 0:00:00]} 5. Nxf6+ {[%emt 0:00:32]} exf6 {[%emt 0:00:00]} 6. Nf3 {[%emt 0:00:08]} Bd6 {[%emt 0:00:00]} 7. Bd3 {[%emt 0:00:10]} O-O {[%emt 0:00:00]} 8. O-O {[%emt 0:00:03]} Nd7 {[%emt 0:00:01]} 9. c3 {[%emt 0:00:13]} Re8 {[%emt 0:00:10]} 10. Qc2 {[%emt 0:03:42]} Nf8 {[%emt 0:00:20]} 11. Nh4 {[%emt 0:03:25]} Qc7 {[%emt 0:01:05]} 12. h3 {[%emt 0:02:04]} g6 {[%emt 0:09:37]} 13. Bd2 {[%emt 0:04:19]} Be6 {[%emt 0:00:57]} 14. Rfe1 {[%emt 0:04:55]} Bf4 {[%emt 0:05:26]} 15. Qc1 {[%emt 0:02:48]} Bd6 {[%emt 0:03:40]} 16. Qc2 {[%emt 0:08:24]} Qd7 {[%emt 0:01:13]} 17. f4 {[%emt 0:02:30]} f5 {[%emt 0:02:57]} 18. b3 {[%emt 0:05:27]} c5 {[%emt 0:08:42]} 19. Nf3 {[%emt 0:01:59]} Red8 {[%emt 0:09:38]} 20. Rad1 {[%emt 0:04:14]} Rac8 {[%emt 0:01:06]} 21. Be3 {[%emt 0:10:16]} Qc7 {[%emt 0:15:21]} 22. g3 {[%emt 0:05:32]} Bd5 {[%emt 0:04:53]} 23. Ne5 {[%emt 0:05:24]} cxd4 {[%emt 0:00:42]} 24. Bxd4 {[%emt 0:00:17]} Ne6 {[%emt 0:01:41]} 25. Qf2 {[%emt 0:12:39]} Nxd4 {[%emt 0:02:29]} 26. cxd4 {[%emt 0:00:18]} a6 {[%emt 0:02:53]} 27. Rc1 {[%emt 0:03:27]} Qxc1 {[%emt 0:02:51]} 28. Rxc1 {[%emt 0:00:09]} Rxc1+ {[%emt 0:00:03]} 29. Bf1 {[%emt 0:00:04]} Bxe5 {[%emt 0:00:16]} 30. dxe5 {[%emt 0:06:16]} Be4 {[%emt 0:01:17]} 31. h4 {[%emt 0:02:59]} Rdd1 {[%emt 0:00:07]} 32. Qe2 {[%emt 0:01:44]} Bd3 {[%emt 0:00:57]} 0-1

[Event "POL-chT 2nd League Juniors 2020"]
[Site "Sypniewo"]
[Date "2020.10.23"]
[Round "1.21"]
[White "Skrzypinski, Jan"]
[Black "Duda, Szymon"]
[Result "1/2-1/2"]
[ECO "C54"]
[WhiteElo "1418"]
[BlackElo "1529"]
[Annotator "NA"]
[PlyCount "114"]
[EventDate "2020.10.23"]
[EventType "team-tourn"]
[EventCountry "POL"]
[SourceTitle "playchess.com"]
[Source "ChessBase"]
[SourceQuality "1"]
[TimeControl "5400+30"]

1. e4 {[%emt 0:00:00]} e5 {[%emt 0:00:00]} 2. Nf3 {[%emt 0:00:01]} Nc6 {[%emt 0:00:00]} 3. Bc4 {[%emt 0:00:11]} Bc5 {[%emt 0:00:00]} 4. c3 {[%emt 0:00:05]} Nf6 {[%emt 0:00:00]} 5. d3 {[%emt 0:00:02]} d6 {[%emt 0:00:03]} 6. h3 {[%emt 0:00:19]} h6 {[%emt 0:00:06]} 7. O-O {[%emt 0:00:37]} O-O {[%emt 0:00:06]} 8. Re1 {[%emt 0:00:18]} Re8 {[%emt 0:00:24]} 9. Nbd2 {[%emt 0:02:39]} Bb6 {[%emt 0:01:04]} 10. Bb3 {[%emt 0:00:40]} Be6 {[%emt 0:01:37]} 11. Nf1 {[%emt 0:01:29]} Qd7 {[%emt 0:00:37]} 12. Ng3 Rad8 {[%emt 0:00:47]} 13. Be3 {[%emt 0:01:22]} d5 {[%emt 0:02:00]} 14. Bxb6 {[%emt 0:01:55]} axb6 {[%emt 0:01:04]} 15. Bc2 {[%emt 0:03:40]} dxe4 {[%emt 0:01:33]} 16. dxe4 {[%emt 0:00:23]} Qxd1 {[%emt 0:00:41]} 17. Rexd1 {[%emt 0:00:19]} Rxd1+ 18. Rxd1 Ra8 {[%emt 0:04:20]} 19. a3 {[%emt 0:00:32]} Kf8 {[%emt 0:00:14]} 20. Nf1 {[%emt 0:01:39]} Ke7 {[%emt 0:01:24]} 21. Ne3 {[%emt 0:00:26]} Rd8 {[%emt 0:00:00]} 22. Rxd8 {[%emt 0:00:48]} Kxd8 {[%emt 0:01:05]} 23. b4 {[%emt 0:01:26]} Nd7 {[%emt 0:01:20]} 24. Kf1 {[%emt 0:04:39]} Ne7 25. Nh4 c6 {[%emt 0:02:33]} 26. Nhf5 {[%emt 0:02:00]} Bxf5 {[%emt 0:00:19]} 27. Nxf5 {[%emt 0:02:56]} Nxf5 {[%emt 0:02:00]} 28. exf5 {[%emt 0:00:05]} Kc7 {[%emt 0:01:31]} 29. Bb3 {[%emt 0:00:46]} f6 {[%emt 0:01:25]} 30. Ke2 {[%emt 0:02:15]} Kd6 {[%emt 0:06:31]} 31. Ke3 {[%emt 0:00:43]} Kc7 {[%emt 0:00:56]} 32. Bc2 {[%emt 0:00:58]} Nb8 {[%emt 0:04:03]} 33. Be4 {[%emt 0:00:43]} Na6 {[%emt 0:03:31]} 34. Kf3 {[%emt 0:00:44]} Nb8 {[%emt 0:02:56]} 35. Kg4 {[%emt 0:01:44]} Nd7 {[%emt 0:00:08]} 36. h4 {[%emt 0:01:06]} b5 {[%emt 0:00:26]} 37. Kh5 {[%emt 0:00:57]} Nf8 {[%emt 0:00:06]} 38. Bd3 {[%emt 0:00:07]} Kd6 {[%emt 0:00:57]} 39. c4 {[%emt 0:00:18]} e4 {[%emt 0:09:15]} 40. Be2 {[%emt 0:18:26]} bxc4 {[%emt 0:00:49]} 41. Bxc4 {[%emt 0:00:02]} Ke5 {[%emt 0:00:14]} 42. g4 {[%emt 0:01:44]} Kf4 {[%emt 0:09:07]} 43. Be2 {[%emt 0:00:56]} e3 {[%emt 0:00:13]} 44. fxe3+ {[%emt 0:00:04]} Kxe3 {[%emt 0:00:05]} 45. Bc4 {[%emt 0:00:02]} Kd4 {[%emt 0:06:00]} 46. Be6 {[%emt 0:00:43]} Kc3 {[%emt 0:01:41]} 47. Bc8 {[%emt 0:01:06]} b5 {[%emt 0:02:14]} 48. g5 {[%emt 0:00:17]} hxg5 {[%emt 0:00:17]} 49. hxg5 {[%emt 0:00:05]} fxg5 {[%emt 0:00:14]} 50. Kxg5 {[%emt 0:00:07]} Kb3 {[%emt 0:00:06]} 51. f6 {[%emt 0:00:26]} Nh7+ {[%emt 0:00:44]} 52. Kg6 {[%emt 0:00:03]} Nxf6 {[%emt 0:00:10]} 53. Bb7 {[%emt 0:01:10]} Nd5 {[%emt 0:00:06]} 54. Kxg7 {[%emt 0:00:07]} Nxb4 {[%emt 0:01:50]} 55. axb4 {[%emt 0:00:03]} Kxb4 {[%emt 0:00:03]} 56. Bxc6 {[%emt 0:00:03]} Kc5 {[%emt 0:00:03]} 57. Bxb5 {[%emt 0:00:03]} Kxb5 {[%emt 0:00:03]} 1/2-1/2

[Event "POL-chT 2nd League Juniors 2020"]
[Site "Sypniewo"]
[Date "2020.10.23"]
[Round "1.22"]
[White "Lapczynski, Jacek"]
[Black "Kaczmarek, Jan"]
[Result "1/2-1/2"]
[ECO "E81"]
[WhiteElo "1212"]
[BlackElo "1229"]
[Annotator "NA RC"]
[PlyCount "101"]
[EventDate "2020.10.23"]
[EventType "team-tourn"]
[EventCountry "POL"]
[SourceTitle "playchess.com"]
[Source "ChessBase"]
[SourceQuality "1"]
[TimeControl "5400+30"]

1. d4 {[%emt 0:00:00]} Nf6 {[%emt 0:00:00]} 2. c4 {[%emt 0:00:07]} g6 {[%emt 0:00:09]} 3. f3 {[%emt 0:00:31]} Bg7 {[%emt 0:00:18]} 4. e4 {[%emt 0:00:48]} d6 {[%emt 0:00:23]} 5. Nc3 {[%emt 0:00:23]} O-O {[%emt 0:00:29]} 6. Bg5 {[%emt 0:00:32]} c5 {[%emt 0:01:58]} 7. d5 {[%emt 0:00:42]} Nbd7 {[%emt 0:03:06]} 8. Qd2 {[%emt 0:01:13]} Qa5 {[%emt 0:03:54]} 9. Bd3 {[%emt 0:02:16]} a6 {[%emt 0:02:50]} 10. Nge2 {[%emt 0:00:33]} Rb8 {[%emt 0:03:58]} 11. a4 {[%emt 0:01:13]} Ne5 {[%emt 0:08:01]} 12. O-O {[%emt 0:01:09]} e6 {[%emt 0:02:22]} 13. f4 {[%emt 0:01:12]} Nxd3 {[%emt 0:01:01]} 14. Qxd3 {[%emt 0:00:14]} exd5 {[%emt 0:01:17]} 15. exd5 {[%emt 0:01:25]} Bf5 {[%emt 0:04:55]} 16. Qd2 {[%emt 0:04:36]} Qb4 {[%emt 0:04:46]} 17. Rfd1 {[%emt 0:01:50]} Qxc4 {[%emt 0:02:01]} 18. a5 {[%emt 0:00:48]} Ne4 {[%emt 0:01:35]} 19. Nxe4 {[%emt 0:04:18]} Qxe4 {[%emt 0:01:00]} 20. Ng3 {[%emt 0:00:41]} Qd4+ {[%emt 0:01:04]} 21. Qxd4 {[%emt 0:00:29]} Bxd4+ {[%emt 0:00:02]} 22. Kh1 {[%emt 0:00:35]} Bxb2 {[%emt 0:06:14]} 23. Ra2 {[%emt 0:02:06]} Bd4 {[%emt 0:02:54]} 24. Be7 {[%emt 0:02:43]} Rfe8 {[%emt 0:00:15]} 25. Bxd6 {[%emt 0:00:10]} Rbd8 {[%emt 0:00:18]} 26. Nxf5 {[%emt 0:02:04]} gxf5 {[%emt 0:00:02]} 27. Bc7 {[%emt 0:00:50]} Rxd5 {[%emt 0:02:19]} 28. Rad2 {[%emt 0:00:53]} Rd7 {[%emt 0:01:01]} 29. Be5 {[%emt 0:00:38]} Rde7 {[%emt 0:00:31]} 30. Bxd4 {[%emt 0:00:38]} cxd4 {[%emt 0:00:07]} 31. Kg1 {[%emt 0:00:36]} Re1+ {[%emt 0:00:07]} 32. Kf2 {[%emt 0:00:32]} Rxd1 {[%emt 0:01:48]} 33. Rxd1 {[%emt 0:00:15]} Rd8 {[%emt 0:01:04]} 34. Rb1 {[%emt 0:00:19]} d3 {[%emt 0:02:43]} 35. Ke1 {[%emt 0:00:43]} d2+ {[%emt 0:00:48]} 36. Kd1 {[%emt 0:00:24]} Rd5 {[%emt 0:00:26]} 37. Ra1 {[%emt 0:00:51]} Kf8 {[%emt 0:00:48]} 38. Ra2 {[%emt 0:00:19]} Ke7 {[%emt 0:00:19]} 39. g3 {[%emt 0:02:48]} Kd6 {[%emt 0:00:21]} 40. Ra3 {[%emt 0:00:45]} Kc6 {[%emt 0:01:38]} 41. Ra2 {[%emt 0:00:36]} Rd7 {[%emt 0:02:08]} 42. Rb2 {[%emt 0:00:43]} Kc5 {[%emt 0:00:21]} 43. Rb6 {[%emt 0:01:07]} Kc4 {[%emt 0:00:36]} 44. Rf6 {[%emt 0:02:58]} Kc3 {[%emt 0:02:21]} 45. Rxf5 {[%emt 0:03:15]} Re7 {[%emt 0:04:47]} 46. Rc5+ {[%emt 0:02:13]} Kd4 {[%emt 0:03:39]} 47. Rc2 {[%emt 0:01:52]} Re1+ {[%emt 0:01:05]} 48. Kxd2 {[%emt 0:00:45]} Ra1 {[%emt 0:05:46]} 49. Rc7 {[%emt 0:01:06]} Ra2+ {[%emt 0:00:51]} 50. Kc1 {[%emt 0:00:22]} Ra1+ {[%emt 0:00:17]} 51. Kd2 {[%emt 0:01:27]} 1/2-1/2

[Event "POL-chT 2nd League Juniors 2020"]
[Site "Sypniewo"]
[Date "2020.10.23"]
[Round "1.23"]
[White "Niemier, Martyna"]
[Black "Czarnecka, Lidia"]
[Result "0-1"]
[ECO "D18"]
[WhiteElo "1235"]
[BlackElo "1861"]
[Annotator "NA"]
[PlyCount "116"]
[EventDate "2020.10.23"]
[EventType "team-tourn"]
[EventCountry "POL"]
[SourceTitle "playchess.com"]
[Source "ChessBase"]
[SourceQuality "1"]
[TimeControl "5400+30"]

1. d4 {[%emt 0:00:00]} d5 {[%emt 0:00:14]} 2. c4 {[%emt 0:00:00]} c6 {[%emt 0:00:07]} 3. Nc3 {[%emt 0:00:00]} dxc4 {[%emt 0:00:28]} 4. a4 {[%emt 0:00:16]} Nf6 {[%emt 0:01:22]} 5. Nf3 {[%emt 0:00:58]} Bf5 {[%emt 0:05:08]} 6. e3 {[%emt 0:02:38]} e6 {[%emt 0:02:18]} 7. Bxc4 {[%emt 0:01:31]} Bb4 {[%emt 0:02:17]} 8. Bd2 {[%emt 0:00:53]} O-O {[%emt 0:01:02]} 9. O-O {[%emt 0:00:33]} Nbd7 {[%emt 0:08:20]} 10. Na2 {[%emt 0:03:09] D18: Slav Defence: 5 a4 Bf5 6 e3.} Bd6 {[%emt 0:01:15]} 11. Bb4 {[%emt 0:03:37] [#]} Qc7 $146 {[%emt 0:03:44]} ({Predecessor:} 11... Qe7 12. Qb3 a5 13. Bxd6 Qxd6 14. Bd3 Bxd3 15. Qxd3 Nd5 16. Ng5 f5 17. Qb3 h6 {½-½ (41) David,S (1715)-Zepke,A (2122) Bayerisch Eisenstein 2019}) 12. Bxd6 {[%emt 0:01:00]} Qxd6 {[%emt 0:00:06]} 13. Nc3 {[%emt 0:02:33]} Rac8 {[%emt 0:03:52]} 14. Bd3 {[%emt 0:06:29]} Bg4 {[%emt 0:01:34]} 15. h3 {[%emt 0:01:38]} Bh5 {[%emt 0:00:06]} 16. Rc1 {[%emt 0:12:44]} Qb4 {[%emt 0:04:26]} 17. Rb1 {[%emt 0:08:07]} Nb6 {[%emt 0:03:35]} (17... Bxf3 $5 18. Qxf3 c5 $11) 18. Bc2 {[%emt 0:03:50]} Rfd8 {[%emt 0:02:25]} 19. Na2 {[%emt 0:04:20]} Qe7 {[%emt 0:03:20]} 20. Qe2 {[%emt 0:01:10]} ({White should play} 20. a5 $15 Nbd5 21. g4) 20... c5 {[%emt 0:01:54]} 21. dxc5 {[%emt 0:01:25]} Rxc5 {[%emt 0:00:18]} 22. b3 {[%emt 0:06:15]} Bxf3 {[%emt 0:04:21]} 23. gxf3 {[%emt 0:01:12]} Nfd5 {[%emt 0:09:48]} ({Better is} 23... Rh5 $17 24. Kg2 g6) 24. f4 {[%emt 0:02:41]} Qh4 {[%emt 0:02:44]} 25. Rbc1 {[%emt 0:06:19]} Rdc8 {[%emt 0:02:17]} 26. Be4 {[%emt 0:01:26]} Qxh3 {[%emt 0:04:06]} 27. Rxc5 {[%emt 0:01:57]} Rxc5 {[%emt 0:00:05]} 28. Rc1 {[%emt 0:00:54]} Rxc1+ {[%emt 0:10:37]} 29. Nxc1 {[%emt 0:00:08]} g6 {[%emt 0:07:52]} 30. Qf3 {[%emt 0:04:26]} Qxf3 {[%emt 0:01:13]} 31. Bxf3 {[%emt 0:00:14]} Kf8 {[%emt 0:00:26]} 32. Nd3 {[%emt 0:02:24]} Nd7 {[%emt 0:00:21]} 33. Kf1 {[%emt 0:02:15]} Ke7 {[%emt 0:00:30]} 34. Ke1 {[%emt 0:00:50]} f6 {[%emt 0:01:30]} 35. Kd2 {[%emt 0:00:44]} b6 {[%emt 0:00:52]} 36. e4 {[%emt 0:01:20]} Nc7 {[%emt 0:00:34]} 37. e5 {[%emt 0:00:50]} Nd5 {[%emt 0:02:52]} 38. Bg2 {[%emt 0:06:50]} Nc5 {[%emt 0:01:45]} 39. Bxd5 {[%emt 0:01:38]} exd5 {[%emt 0:00:05]} 40. Nxc5 {[%emt 0:03:25]} bxc5 {[%emt 0:00:09]} 41. Kc3 {[%emt 0:00:17]} a5 {[%emt 0:00:35]} 42. Kd3 {[%emt 0:00:26]} Ke6 {[%emt 0:00:11]} 43. Ke3 {[%emt 0:00:31]} fxe5 {[%emt 0:00:05]} 44. fxe5 {[%emt 0:00:11]} Kxe5 {[%emt 0:00:04]} 45. f4+ {[%emt 0:00:05]} Kf5 {[%emt 0:00:09]} 46. Kf3 {[%emt 0:00:09]} d4 {[%emt 0:00:10]} 47. Ke2 {[%emt 0:00:17]} Ke4 {[%emt 0:00:20]} 48. Kd2 {[%emt 0:00:16]} h5 {[%emt 0:00:05]} 49. Ke2 {[%emt 0:00:06]} h4 {[%emt 0:00:04]} 50. Kf2 {[%emt 0:00:05]} Kxf4 {[%emt 0:00:06]} 51. Kg2 {[%emt 0:00:05]} g5 {[%emt 0:00:06]} 52. Kh1 {[%emt 0:00:04]} d3 {[%emt 0:00:05]} 53. Kg2 {[%emt 0:00:30]} d2 {[%emt 0:00:08]} 54. Kh2 {[%emt 0:00:03]} d1=Q {[%emt 0:00:18]} 55. Kh3 {[%emt 0:00:27]} g4+ {[%emt 0:00:07]} 56. Kh2 {[%emt 0:00:08]} Kf3 {[%emt 0:00:28]} 57. b4 {[%emt 0:00:08]} Qe2+ {[%emt 0:00:08]} 58. Kh1 {[%emt 0:00:04]} Qg2# {[%emt 0:00:13]} 0-1

[Event "POL-chT 2nd League Juniors 2020"]
[Site "Sypniewo"]
[Date "2020.10.23"]
[Round "1.24"]
[White "Slusarczyk, Anna"]
[Black "Lewicka, Joanna"]
[Result "0-1"]
[ECO "D63"]
[WhiteElo "1330"]
[BlackElo "1243"]
[Annotator "NA"]
[PlyCount "128"]
[EventDate "2020.10.23"]
[EventType "team-tourn"]
[EventCountry "POL"]
[SourceTitle "playchess.com"]
[Source "ChessBase"]
[SourceQuality "1"]
[TimeControl "5400+30"]

1. d4 {[%emt 0:00:00]} d5 {[%emt 0:00:00]} 2. c4 {[%emt 0:00:00]} e6 {[%emt 0:00:00]} 3. Nc3 {[%emt 0:00:00]} Nf6 {[%emt 0:00:00]} 4. Bg5 {[%emt 0:00:03]} Be7 {[%emt 0:00:01]} 5. Nf3 {[%emt 0:00:06]} Nbd7 {[%emt 0:00:42]} 6. Rc1 {[%emt 0:00:40]} O-O {[%emt 0:00:47]} 7. e3 {[%emt 0:00:27]} c5 {[%emt 0:00:28]} 8. cxd5 {[%emt 0:04:50]} exd5 {[%emt 0:03:07]} 9. Bd3 {[%emt 0:00:25]} c4 {[%emt 0:04:55]} 10. Bb1 {[%emt 0:00:25]} a6 {[%emt 0:02:52]} 11. O-O {[%emt 0:02:34]} b5 {[%emt 0:00:27]} 12. Ne5 {[%emt 0:02:16]} Nxe5 {[%emt 0:03:29]} 13. dxe5 {[%emt 0:00:21]} Ng4 {[%emt 0:00:34]} 14. Bf4 {[%emt 0:05:16]} f6 {[%emt 0:03:45]} 15. Qxd5+ {[%emt 0:02:04]} Qxd5 {[%emt 0:00:25]} 16. Nxd5 {[%emt 0:00:02]} Bc5 {[%emt 0:03:26]} 17. exf6 {[%emt 0:02:11]} Nxf6 18. Nxf6+ {[%emt 0:00:33]} Rxf6 {[%emt 0:00:37]} 19. Be4 {[%emt 0:00:42]} Ra7 {[%emt 0:00:20]} 20. Bg5 {[%emt 0:01:04]} Rd6 {[%emt 0:01:22]} 21. Be7 {[%emt 0:00:15]} Rxe7 {[%emt 0:00:19]} 22. Bf3 {[%emt 0:01:22]} Bb7 {[%emt 0:00:22]} 23. b3 {[%emt 0:10:19]} Bxf3 {[%emt 0:01:05]} 24. gxf3 {[%emt 0:00:02]} Ba3 {[%emt 0:00:29]} 25. Rc2 {[%emt 0:02:16]} cxb3 {[%emt 0:00:48]} 26. axb3 {[%emt 0:00:14]} Red7 {[%emt 0:00:32]} 27. Kg2 {[%emt 0:02:53]} Rd3 {[%emt 0:04:02]} 28. Rb1 {[%emt 0:04:31]} Bb4 {[%emt 0:06:20]} 29. f4 {[%emt 0:02:54]} Rc3 {[%emt 0:01:40]} 30. Ra2 {[%emt 0:02:26]} a5 {[%emt 0:00:33]} 31. e4 {[%emt 0:01:12]} Rdd3 {[%emt 0:01:36]} 32. e5 {[%emt 0:04:00]} Rf3 {[%emt 0:01:55]} 33. e6 {[%emt 0:01:48]} Rxf4 {[%emt 0:00:43]} 34. Rd2 {[%emt 0:01:19]} Be7 {[%emt 0:00:56]} 35. Rd7 {[%emt 0:02:22]} Kf8 {[%emt 0:15:08]} 36. Rb7 {[%emt 0:01:40]} Rc8 {[%emt 0:17:09]} 37. Rxb5 {[%emt 0:04:05]} Ra8 {[%emt 0:02:47]} 38. Rc1 {[%emt 0:12:53]} Rb4 {[%emt 0:01:46]} 39. Rf5+ {[%emt 0:01:38]} Bf6 {[%emt 0:00:58]} 40. Rcc5 {[%emt 0:00:48]} Rxb3 {[%emt 0:00:55]} 41. Rxa5 {[%emt 0:01:20]} Rxa5 {[%emt 0:00:07]} 42. Rxa5 {[%emt 0:00:06]} Rb6 {[%emt 0:00:30]} 43. h3 {[%emt 0:00:18]} Rxe6 {[%emt 0:00:07]} 44. Ra8+ {[%emt 0:00:25]} Kf7 {[%emt 0:00:09]} 45. Ra7+ {[%emt 0:00:20]} Kg6 {[%emt 0:00:10]} 46. Ra2 {[%emt 0:01:59]} Kg5 {[%emt 0:01:33]} 47. Ra5+ {[%emt 0:01:08]} Re5 {[%emt 0:00:27]} 48. Ra2 {[%emt 0:01:16]} Rb5 {[%emt 0:03:45]} 49. Re2 {[%emt 0:01:33]} Rb2 {[%emt 0:03:41]} 50. Re8 {[%emt 0:02:04]} Bd4 {[%emt 0:03:55]} 51. Rf8 {[%emt 0:00:19]} Rxf2+ {[%emt 0:00:24]} 52. Rxf2 {[%emt 0:00:12]} Bxf2 {[%emt 0:00:04]} 53. Kxf2 {[%emt 0:00:05]} Kf4 {[%emt 0:00:12]} 54. Kg2 {[%emt 0:00:16]} h5 {[%emt 0:00:38]} 55. Kf2 {[%emt 0:00:18]} h4 {[%emt 0:00:17]} 56. Kg2 {[%emt 0:00:06]} Ke3 {[%emt 0:00:07]} 57. Kg1 {[%emt 0:00:36]} Kf3 {[%emt 0:00:19]} 58. Kh2 {[%emt 0:00:08]} Kf2 {[%emt 0:00:10]} 59. Kh1 {[%emt 0:00:07]} Kg3 {[%emt 0:00:09]} 60. Kg1 {[%emt 0:00:11]} Kxh3 {[%emt 0:00:05]} 61. Kh1 {[%emt 0:00:30]} g5 {[%emt 0:01:10]} 62. Kg1 {[%emt 0:00:07]} g4 {[%emt 0:00:10]} 63. Kh1 {[%emt 0:00:10]} g3 {[%emt 0:00:09]} 64. Kg1 {[%emt 0:00:03]} g2 {[%emt 0:00:30]} 0-1

[Event "POL-chT 2nd League Juniors 2020"]
[Site "Sypniewo"]
[Date "2020.10.24"]
[Round "2.1"]
[White "Lewandowski, Wiktor"]
[Black "Majdanski, Maksymilian"]
[Result "1-0"]
[ECO "B34"]
[WhiteElo "1756"]
[BlackElo "1817"]
[Annotator "NA RC"]
[PlyCount "83"]
[EventDate "2020.10.23"]
[EventType "team-tourn"]
[EventCountry "POL"]
[SourceTitle "playchess.com"]
[Source "ChessBase"]
[SourceQuality "1"]
[TimeControl "5400+30"]

{[%evp 13,78,0,32767,32767,-12,0,59,79,68,76,79,82,72,32767,32767,32767,32767,32767,108,85,32767,110,32767,104,112,84,32767,94,147,150,146,157,32767,32767,32767,32767,181,200,32767,32767,205,32767,32767,32767,32767,662,689,804,977,730,649,250,980,434,688,32767,1479,1161,1041,1422,1776,32767,29981,32767,1538,32767,29997]} 1. e4 c5 2. Nf3 Nc6 3. d4 cxd4 4. Nxd4 Nf6 5. Nc3 e5 6. Ndb5 d6 7. a4 Bg4 {B33: Sicilian: Pelikan and Sveshnikov Variations.} 8. Be2 Bxe2 9. Qxe2 Be7 (9... a6 $11 10. Na3 d5) 10. Bg5 a6 11. Bxf6 $1 Bxf6 12. Na3 Nd4 13. Qd3 O-O 14. O-O Rc8 15. Nd5 {[#]} Be7 $146 ({Predecessor:} 15... Bg5 16. c3 Nb3 17. Rad1 g6 18. Nc4 Nc5 19. Qc2 f5 20. exf5 gxf5 21. Nde3 Bxe3 22. fxe3 {½-½ (73) Guth,T (2250)-Walkewitz,H Germany 1999}) 16. c3 Nb3 17. Rad1 Nc5 18. Qc2 g6 19. b3 Qe8 20. a5 f5 21. exf5 gxf5 22. Nc4 Rd8 23. Nce3 f4 24. Nf5 Bg5 25. b4 Ne6 26. h4 Bf6 27. Nxd6 Rxd6 28. Nxf6+ Rxf6 29. Rxd6 f3 30. g3 Qh5 31. Rfd1 Qg4 32. Rd7 $2 (32. Qd3) 32... Rg6 $2 (32... Nf8 33. Qd3 (33. Rxb7 {is a self mate.} Qh3 34. Qa2+ Kh8 35. Rxh7+ Nxh7 36. Qg8+ {[%mdl 64] Decoy} Kxg8 37. Rd8+ Nf8 38. Rxf8+ Rxf8 39. c4 Qg2#) 33... Nxd7) 33. Kf1 Qh3+ $18 (33... e4 $142 34. Ke1 (34. Rxb7 Qh3+ 35. Ke1 e3 $14) 34... e3 35. fxe3 Qxg3+ 36. Kd2 (36. Qf2 $2 Qh3 $19) 36... Nf8) 34. Ke1 Nf4 35. Rd8+ Kg7 36. gxf4 Qxh4 37. R8d7+ Kh6 38. R1d6 Qh1+ 39. Kd2 Qf1 40. Rxg6+ hxg6 41. Ke3 exf4+ 42. Kd4 1-0